[Event "Schack-SM 2023: Mastarklassen"]
[Site "Helsingborg Arena, Mellersta Stenbocksgatan 14, Helsingborg, Sweden"]
[Date "2023.07.01"]
[Round "1.7"]
[White "Soppela, Toni"]
[Black "Jogstad, Daniel"]
[Result "1/2-1/2"]
[TimeControl "90 minutes for 40 moves + 30 minutes for the rest of games + 30 seconds per move from move one."]
[BlackTitle "CM"]
[WhiteElo "2032"]
[BlackElo "2131"]

1. d4 {[%clk 01:30:21]} {[%emt 00:00:18]} d5 {[%clk 01:30:52]} {[%emt
00:00:09]} 2. c4 {[%clk 01:30:25]} {[%emt 00:00:26]} c6 {[%clk 01:31:16]}
{[%emt 00:00:07]} 3. Nf3 {[%clk 01:30:43]} {[%emt 00:00:12]} Nf6 {[%clk
01:31:37]} {[%emt 00:00:10]} 4. Nc3 {[%clk 01:30:48]} {[%emt 00:00:24]} e6
{[%clk 01:32:01]} {[%emt 00:00:06]} 5. Bg5 {[%clk 01:30:02]} {[%emt 00:01:17]}
Nbd7 {[%clk 01:32:22]} {[%emt 00:00:08]} 6. cxd5 {[%clk 01:28:53]} {[%emt
00:01:40]} exd5 {[%clk 01:32:43]} {[%emt 00:00:08]} 7. e3 {[%clk 01:28:41]}
{[%emt 00:00:41]} h6 {[%clk 01:33:06]} {[%emt 00:00:08]} 8. Bh4 {[%clk
01:28:11]} {[%emt 00:01:00]} g5 {[%clk 01:33:30]} {[%emt 00:00:07]} 9. Bg3
{[%clk 01:28:34]} {[%emt 00:00:05]} Nh5 {[%clk 01:33:54]} {[%emt 00:00:06]} 10.
Bd3 {[%clk 01:25:51]} {[%emt 00:03:13]} Nxg3 {[%clk 01:34:05]} {[%emt
00:00:20]} 11. hxg3 {[%clk 01:26:14]} {[%emt 00:00:07]} Bg7 {[%clk 01:34:29]}
{[%emt 00:00:06]} 12. Qc2 {[%clk 01:17:36]} {[%emt 00:09:08]} Nb6 {[%clk
01:34:53]} {[%emt 00:00:06]} 13. O-O {[%clk 01:05:38]} {[%emt 00:12:26]} Be6
{[%clk 01:32:32]} {[%emt 00:02:53]} 14. b4 {[%clk 01:03:01]} {[%emt 00:03:08]}
O-O {[%clk 01:19:56]} {[%emt 00:13:05]} 15. a4 {[%clk 00:54:33]} {[%emt
00:08:58]} f5 {[%clk 00:47:58]} {[%emt 00:32:29]} 16. Ne2 {[%clk 00:44:24]}
{[%emt 00:10:36]} Nd7 {[%clk 00:27:45]} {[%emt 00:20:46]} 17. b5 {[%clk
00:33:46]} {[%emt 00:11:08]} Rc8 {[%clk 00:27:24]} {[%emt 00:00:50]} 18. bxc6
{[%clk 00:29:55]} {[%emt 00:04:21]} Rxc6 {[%clk 00:21:50]} {[%emt 00:06:05]} 19.
Qb1 {[%clk 00:28:18]} {[%emt 00:02:05]} Qb8 {[%clk 00:19:32]} {[%emt 00:02:48]}
20. Rc1 {[%clk 00:27:31]} {[%emt 00:01:18]} Rxc1+ {[%clk 00:18:29]} {[%emt
00:01:33]} 21. Qxc1 {[%clk 00:27:45]} {[%emt 00:00:16]} Nf6 {[%clk 00:14:29]}
{[%emt 00:04:31]} 22. Ra2 {[%clk 00:25:13]} {[%emt 00:03:00]} Rc8 {[%clk
00:13:04]} {[%emt 00:01:56]} 23. Rc2 {[%clk 00:25:12]} {[%emt 00:00:30]} Rxc2
{[%clk 00:13:10]} {[%emt 00:00:25]} 24. Qxc2 {[%clk 00:25:30]} {[%emt
00:00:11]} Ne4 {[%clk 00:13:35]} {[%emt 00:00:05]} 25. Nd2 {[%clk 00:18:30]}
{[%emt 00:07:31]} Qc8 {[%clk 00:10:29]} {[%emt 00:03:36]} 26. Qb2 {[%clk
00:16:20]} {[%emt 00:02:40]} Qc6 {[%clk 00:05:57]} {[%emt 00:05:02]} 27. Bb5
{[%clk 00:15:18]} {[%emt 00:01:32]} Qb6 {[%clk 00:06:06]} {[%emt 00:00:21]} 28.
Qc1 {[%clk 00:10:02]} {[%emt 00:05:45]} Nd6 {[%clk 00:05:35]} {[%emt 00:01:02]}
29. Bd3 {[%clk 00:09:33]} {[%emt 00:00:59]} Bf8 {[%clk 00:02:37]} {[%emt
00:03:28]} 30. Qc2 {[%clk 00:08:40]} {[%emt 00:01:22]} Qb4 {[%clk 00:02:12]}
{[%emt 00:00:56]} 31. Nc3 {[%clk 00:04:08]} {[%emt 00:05:02]} Ne4 {[%clk
00:02:20]} {[%emt 00:00:22]} 32. Ncxe4 {[%clk 00:03:44]} {[%emt 00:00:54]} fxe4
{[%clk 00:02:19]} {[%emt 00:00:32]} 33. Bb5 {[%clk 00:03:14]} {[%emt 00:00:59]}
a6 {[%clk 00:01:48]} {[%emt 00:01:02]} 34. Be8 {[%clk 00:02:17]} {[%emt
00:01:26]} Bd6 {[%clk 00:00:58]} {[%emt 00:01:19]} 35. f3 {[%clk 00:02:01]}
{[%emt 00:00:47]} Bxg3 {[%clk 00:00:42]} {[%emt 00:00:46]} 36. fxe4 {[%clk
00:02:13]} {[%emt 00:00:18]} Qf8 {[%clk 00:01:02]} {[%emt 00:00:10]} 37. Nf1
{[%clk 00:01:49]} {[%emt 00:00:53]} Bd6 {[%clk 00:00:37]} {[%emt 00:00:55]} 38.
exd5 {[%clk 00:00:58]} {[%emt 00:01:21]} Qxe8 {[%clk 00:00:44]} {[%emt
00:00:23]} 39. dxe6 {[%clk 00:01:22]} {[%emt 00:00:07]} Qxe6 {[%clk 00:01:06]}
{[%emt 00:00:07]} 40. Qb1 {[%clk 00:01:08]} {[%emt 00:00:44]} 1/2-1/2

[Event "Schack-SM 2023: Veteran-SM 65+"]
[Site "Helsingborg Arena, Mellersta Stenbocksgatan 14, Helsingborg, Sweden"]
[Date "2023.07.01"]
[Round "1.6"]
[White "Andersson, Sven-Olof"]
[Black "Sigeman, Johan"]
[Result "0-1"]
[TimeControl "90 minutes for 40 moves + 30 minutes for the rest of games + 30 seconds per move from move one."]
[WhiteElo "1832"]
[BlackElo "2052"]

1. d4 {[%emt 00:00:14]} Nf6 {[%clk 01:30:16]} {[%emt 00:00:44]} 2. Nf3 {[%clk
01:30:52]} {[%emt 00:00:25]} d5 {[%clk 01:29:15]} {[%emt 00:01:31]} 3. g3
{[%clk 01:30:46]} {[%emt 00:00:36]} e6 {[%clk 01:28:57]} {[%emt 00:00:48]} 4.
Bg2 {[%clk 01:26:38]} {[%emt 00:04:39]} c5 {[%clk 01:28:51]} {[%emt 00:00:36]}
5. e3 {[%clk 01:26:10]} {[%emt 00:00:57]} Nc6 {[%clk 01:27:42]} {[%emt
00:01:39]} 6. b3 {[%clk 01:26:10]} {[%emt 00:00:30]} Be7 {[%clk 01:25:49]}
{[%emt 00:02:22]} 7. Bb2 {[%clk 01:25:49]} {[%emt 00:00:51]} O-O {[%clk
01:25:55]} {[%emt 00:00:25]} 8. O-O {[%clk 01:25:46]} {[%emt 00:00:33]} b6
{[%clk 01:23:37]} {[%emt 00:02:47]} 9. Nbd2 {[%clk 01:22:19]} {[%emt 00:03:57]}
Bb7 {[%clk 01:22:37]} {[%emt 00:01:31]} 10. Ne5 {[%clk 01:20:41]} {[%emt
00:02:07]} Qc7 {[%clk 01:11:14]} {[%emt 00:11:54]} 11. Nxc6 {[%clk 01:14:39]}
{[%emt 00:06:32]} Bxc6 {[%clk 01:11:17]} {[%emt 00:00:27]} 12. f4 {[%clk
01:00:31]} {[%emt 00:14:37]} Rac8 {[%clk 01:03:42]} {[%emt 00:08:06]} 13. Qe2
{[%clk 00:52:47]} {[%emt 00:08:14]} Bb7 {[%clk 00:58:11]} {[%emt 00:06:01]} 14.
dxc5 {[%clk 00:38:18]} {[%emt 00:14:57]} Qxc5 {[%clk 00:53:19]} {[%emt
00:05:24]} 15. Rac1 {[%clk 00:35:57]} {[%emt 00:02:51]} Qa5 {[%clk 00:46:52]}
{[%emt 00:06:57]} 16. c4 {[%clk 00:26:34]} {[%emt 00:09:53]} Ba6 {[%clk
00:38:55]} {[%emt 00:08:28]} 17. Rc2 {[%clk 00:20:48]} {[%emt 00:06:15]} Rfd8
{[%clk 00:32:38]} {[%emt 00:06:47]} 18. Bc3 {[%clk 00:13:25]} {[%emt 00:07:52]}
Qa3 {[%clk 00:30:51]} {[%emt 00:02:18]} 19. Bb2 {[%clk 00:12:21]} {[%emt
00:01:34]} Qd6 {[%clk 00:29:01]} {[%emt 00:02:20]} 20. Bf3 {[%clk 00:07:30]}
{[%emt 00:05:20]} dxc4 {[%clk 00:13:08]} {[%emt 00:16:23]} 21. Nxc4 {[%clk
00:07:13]} {[%emt 00:00:47]} Qb4 {[%clk 00:12:01]} {[%emt 00:01:37]} 22. Bc3
{[%emt 00:06:15]} Bxc4 {[%clk 00:10:47]} {[%emt 00:01:41]} 23. Bxb4 {[%clk
00:01:06]} {[%emt 00:00:56]} Bxe2 {[%clk 00:11:14]} {[%emt 00:00:03]} 24. Rxc8
{[%clk 00:00:58]} {[%emt 00:00:38]} Rxc8 {[%clk 00:11:10]} {[%emt 00:00:34]} 25.
Bxe7 {[%emt 00:00:40]} Bxf1 {[%clk 00:11:27]} {[%emt 00:00:12]} 26. Kxf1 {[%clk
00:01:07]} {[%emt 00:00:11]} Nd5 {[%clk 00:11:11]} {[%emt 00:00:47]} 27. Bxd5
{[%clk 00:01:18]} {[%emt 00:00:19]} exd5 {[%clk 00:11:38]} {[%emt 00:00:02]}
0-1

[Event "Schack-SM 2023: Veteran-SM 50+"]
[Site "Helsingborg Arena, Mellersta Stenbocksgatan 14, Helsingborg, Sweden"]
[Date "2023.07.01"]
[Round "1.6"]
[White "Jonas, Gromark"]
[Black "Wahlund, Max"]
[Result "0-1"]
[TimeControl "90 minutes for 40 moves + 30 minutes for the rest of games + 30 seconds per move from move one."]
[BlackTitle "CM"]
[WhiteElo "1775"]
[BlackElo "2002"]

1. c4 {[%clk 01:30:52]} {[%emt 00:00:06]} e5 {[%clk 01:30:52]} {[%emt
00:00:09]} 2. Nc3 {[%clk 01:31:10]} {[%emt 00:00:12]} Nf6 {[%clk 01:31:16]}
{[%emt 00:00:05]} 3. g3 {[%clk 01:31:24]} {[%emt 00:00:16]} c6 {[%clk
01:31:39]} {[%emt 00:00:07]} 4. Bg2 {[%clk 01:23:53]} {[%emt 00:08:02]} Bb4
{[%clk 01:30:06]} {[%emt 00:02:03]} 5. e4 {[%clk 01:22:50]} {[%emt 00:01:32]}
O-O {[%clk 01:23:21]} {[%emt 00:07:16]} 6. Nge2 {[%clk 01:22:16]} {[%emt
00:01:04]} d6 {[%clk 01:21:21]} {[%emt 00:02:30]} 7. O-O {[%clk 01:15:29]}
{[%emt 00:07:17]} Be6 {[%clk 01:21:49]} {[%emt 00:00:03]} 8. d3 {[%clk
01:14:36]} {[%emt 00:01:22]} a6 {[%clk 01:08:41]} {[%emt 00:13:38]} 9. h3
{[%clk 01:12:01]} {[%emt 00:03:05]} b5 {[%clk 00:59:52]} {[%emt 00:09:19]} 10.
b3 {[%clk 01:07:42]} {[%emt 00:04:49]} Nfd7 {[%clk 00:34:18]} {[%emt 00:26:04]}
11. f4 {[%clk 00:55:42]} {[%emt 00:12:29]} f6 {[%clk 00:34:13]} {[%emt
00:00:35]} 12. f5 {[%clk 00:54:33]} {[%emt 00:01:39]} Bf7 {[%clk 00:34:41]}
{[%emt 00:00:02]} 13. Be3 {[%clk 00:51:08]} {[%emt 00:03:55]} Bc5 {[%clk
00:32:54]} {[%emt 00:02:18]} 14. Rf3 {[%clk 00:26:56]} {[%emt 00:24:41]} Bxe3+
{[%clk 00:20:17]} {[%emt 00:13:08]} 15. Rxe3 {[%clk 00:27:13]} {[%emt
00:00:13]} Qb6 {[%clk 00:20:42]} {[%emt 00:00:06]} 16. Qd2 {[%clk 00:27:25]}
{[%emt 00:00:17]} a5 {[%clk 00:20:59]} {[%emt 00:00:14]} 17. Kh2 {[%clk
00:27:07]} {[%emt 00:00:47]} Na6 {[%clk 00:21:00]} {[%emt 00:00:29]} 18. cxb5
{[%clk 00:25:57]} {[%emt 00:01:41]} cxb5 {[%clk 00:21:13]} {[%emt 00:00:16]} 19.
d4 {[%clk 00:24:27]} {[%emt 00:01:59]} Nb4 {[%clk 00:16:13]} {[%emt 00:05:30]}
20. a3 {[%clk 00:23:35]} {[%emt 00:01:22]} Nc6 {[%clk 00:11:36]} {[%emt
00:05:07]} 21. dxe5 {[%clk 00:17:06]} {[%emt 00:06:59]} Ndxe5 {[%clk 00:11:51]}
{[%emt 00:00:15]} 22. Nd5 {[%clk 00:17:04]} {[%emt 00:00:33]} Qa7 {[%clk
00:11:11]} {[%emt 00:01:09]} 23. Rc3 {[%clk 00:15:08]} {[%emt 00:02:27]} Kh8
{[%clk 00:05:10]} {[%emt 00:06:31]} 24. Rac1 {[%clk 00:14:19]} {[%emt
00:01:19]} Bxd5 {[%clk 00:03:21]} {[%emt 00:02:20]} 25. Qxd5 {[%clk 00:14:13]}
{[%emt 00:00:35]} Qf2 {[%clk 00:01:22]} {[%emt 00:02:29]} 26. R1c2 {[%clk
00:08:19]} {[%emt 00:06:23]} b4 {[%clk 00:01:20]} {[%emt 00:00:33]} 27. Rxc6
{[%clk 00:05:24]} {[%emt 00:03:26]} Nf3+ {[%clk 00:01:25]} {[%emt 00:00:25]} 28.
Kh1 {[%clk 00:03:55]} {[%emt 00:01:58]} Qe1+ {[%clk 00:01:52]} {[%emt
00:00:02]} 0-1

[Event "Schack-SM 2023: Sverigemastarklassen"]
[Site "Helsingborg Arena, Mellersta Stenbocksgatan 14, Helsingborg, Sweden"]
[Date "2023.07.01"]
[Round "1.3"]
[White "Pantzar, Milton"]
[Black "Hector, Jonny"]
[Result "0-1"]
[TimeControl "90 minutes for 40 moves + 30 minutes for the rest of the game + 30 seconds per move from move one."]
[WhiteTitle "IM"]
[BlackTitle "GM"]
[WhiteElo "2442"]
[BlackElo "2481"]

1. d4 {[%clk 01:30:54]} {[%emt 00:00:05]} d5 {[%clk 01:30:56]} {[%emt
00:00:03]} 2. c4 {[%clk 01:31:08]} {[%emt 00:00:17]} c6 {[%clk 01:31:21]}
{[%emt 00:00:04]} 3. Nf3 {[%clk 01:31:29]} {[%emt 00:00:10]} Nf6 {[%clk
01:31:43]} {[%emt 00:00:07]} 4. Nbd2 {[%clk 01:31:39]} {[%emt 00:00:21]} Bf5
{[%clk 01:29:30]} {[%emt 00:02:42]} 5. Nh4 {[%clk 01:31:44]} {[%emt 00:00:26]}
Be4 {[%clk 01:27:33]} {[%emt 00:02:27]} 6. Qb3 {[%clk 01:30:50]} {[%emt
00:01:26]} Nbd7 {[%clk 01:25:42]} {[%emt 00:02:19]} 7. e3 {[%clk 01:29:21]}
{[%emt 00:02:01]} e5 {[%clk 01:13:23]} {[%emt 00:12:48]} 8. Be2 {[%clk
01:27:46]} {[%emt 00:02:06]} dxc4 {[%clk 01:08:39]} {[%emt 00:05:14]} 9. Bxc4
{[%clk 01:21:31]} {[%emt 00:06:45]} Bd5 {[%clk 01:07:21]} {[%emt 00:01:47]} 10.
O-O {[%clk 01:09:52]} {[%emt 00:12:10]} Qc7 {[%clk 01:06:24]} {[%emt 00:01:26]}
11. e4 {[%clk 01:01:20]} {[%emt 00:09:03]} Bxc4 {[%clk 01:04:38]} {[%emt
00:02:15]} 12. Nxc4 {[%clk 01:00:53]} {[%emt 00:00:58]} exd4 {[%clk 01:02:38]}
{[%emt 00:02:30]} 13. e5 {[%clk 00:53:16]} {[%emt 00:08:08]} Nc5 {[%clk
00:54:59]} {[%emt 00:08:07]} 14. Qd1 {[%clk 00:37:00]} {[%emt 00:16:47]} Nd5
{[%clk 00:52:12]} {[%emt 00:03:17]} 15. Nd6+ {[%clk 00:35:43]} {[%emt
00:01:48]} Bxd6 {[%clk 00:51:53]} {[%emt 00:00:48]} 16. exd6 {[%clk 00:36:08]}
{[%emt 00:00:06]} Qxd6 {[%clk 00:48:12]} {[%emt 00:04:10]} 17. Re1+ {[%clk
00:33:52]} {[%emt 00:02:46]} Kd7 {[%clk 00:43:55]} {[%emt 00:04:46]} 18. Qxd4
{[%clk 00:31:07]} {[%emt 00:03:16]} Ne6 {[%clk 00:42:39]} {[%emt 00:01:45]} 19.
Qg4 {[%clk 00:27:11]} {[%emt 00:04:27]} Rae8 {[%clk 00:33:00]} {[%emt
00:10:09]} 20. Bd2 {[%clk 00:25:29]} {[%emt 00:02:13]} g6 {[%clk 00:29:14]}
{[%emt 00:04:15]} 21. Nf3 {[%clk 00:21:00]} {[%emt 00:04:59]} f5 {[%clk
00:26:57]} {[%emt 00:02:46]} 22. Qc4 {[%clk 00:19:17]} {[%emt 00:02:14]} Nc5
{[%clk 00:15:52]} {[%emt 00:11:34]} 23. Bb4 {[%clk 00:15:00]} {[%emt 00:04:48]}
Nxb4 {[%clk 00:14:34]} {[%emt 00:01:48]} 24. Qxb4 {[%clk 00:15:24]} {[%emt
00:00:06]} Rxe1+ {[%clk 00:14:24]} {[%emt 00:00:40]} 25. Rxe1 {[%clk 00:15:34]}
{[%emt 00:00:20]} Kc8 {[%clk 00:14:09]} {[%emt 00:00:44]} 26. Qc3 {[%clk
00:03:42]} {[%emt 00:12:23]} Rd8 {[%clk 00:13:58]} {[%emt 00:00:40]} 27. Qg7
{[%clk 00:03:47]} {[%emt 00:00:26]} Rd7 {[%clk 00:09:07]} {[%emt 00:05:21]} 28.
Qh8+ {[%clk 00:04:11]} {[%emt 00:00:06]} Kc7 {[%clk 00:09:25]} {[%emt
00:00:11]} 29. h3 {[%clk 00:01:19]} {[%emt 00:03:23]} Ne4 {[%clk 00:09:20]}
{[%emt 00:00:34]} 30. a3 {[%clk 00:00:57]} {[%emt 00:00:54]} Qc5 {[%clk
00:08:16]} {[%emt 00:01:33]} 31. Rf1 {[%clk 00:01:14]} {[%emt 00:00:13]} a5
{[%clk 00:07:32]} {[%emt 00:01:14]} 32. Qe8 {[%clk 00:00:45]} {[%emt 00:00:59]}
Re7 {[%clk 00:05:44]} {[%emt 00:02:17]} 33. Qg8 {[%clk 00:00:49]} {[%emt
00:00:28]} a4 {[%clk 00:05:12]} {[%emt 00:01:01]} 34. Qa8 {[%clk 00:00:59]}
{[%emt 00:00:20]} Nxf2 {[%clk 00:04:37]} {[%emt 00:01:05]} 35. Kh2 {[%clk
00:00:39]} {[%emt 00:00:51]} Re2 {[%clk 00:02:54]} {[%emt 00:02:12]} 36. Qxa4
{[%clk 00:00:54]} {[%emt 00:00:16]} Qd6+ {[%clk 00:02:45]} {[%emt 00:00:38]} 37.
Kg1 {[%clk 00:00:51]} {[%emt 00:00:33]} Nxh3+ {[%clk 00:02:37]} {[%emt
00:00:38]} 38. Kh1 {[%clk 00:01:13]} {[%emt 00:00:08]} Nf2+ {[%clk 00:02:41]}
{[%emt 00:00:25]} 39. Kg1 {[%clk 00:01:21]} {[%emt 00:00:23]} Ng4 {[%clk
00:01:25]} {[%emt 00:01:45]} 40. Qa5+ {[%clk 00:01:16]} {[%emt 00:00:37]} Kb8
{[%clk 00:02:02]} {[%emt 00:00:22]} 41. Qb6 {[%clk 00:23:25]} {[%emt 00:08:52]}
Ne3 {[%clk 00:26:57]} {[%emt 00:05:33]} 0-1

[Event "Schack-SM 2023: Mastarklassen-elit"]
[Site "Helsingborg Arena, Mellersta Stenbocksgatan 14, Helsingborg, Sweden"]
[Date "2023.07.01"]
[Round "1.2"]
[White "Lokander, Martin"]
[Black "Thorn, Eric"]
[Result "1-0"]
[TimeControl "90 minutes for 40 moves + 30 minutes for the rest of games + 30 seconds per move from move one."]
[WhiteTitle "IM"]
[BlackTitle "FM"]
[WhiteElo "2444"]
[BlackElo "2379"]

1. e4 {[%clk 01:30:54]} {[%emt 00:00:06]} e5 {[%clk 01:30:12]} {[%emt
00:00:49]} 2. Nf3 {[%clk 01:31:17]} {[%emt 00:00:07]} Nc6 {[%clk 01:30:06]}
{[%emt 00:00:36]} 3. Bb5 {[%clk 01:31:32]} {[%emt 00:00:15]} a6 {[%clk
01:29:34]} {[%emt 00:01:02]} 4. Ba4 {[%clk 01:31:44]} {[%emt 00:00:19]} Nf6
{[%clk 01:29:00]} {[%emt 00:01:03]} 5. O-O {[%clk 01:31:59]} {[%emt 00:00:15]}
Be7 {[%clk 01:27:17]} {[%emt 00:02:13]} 6. Bxc6 {[%clk 01:32:03]} {[%emt
00:00:27]} dxc6 {[%clk 01:27:38]} {[%emt 00:00:09]} 7. Nc3 {[%clk 01:32:02]}
{[%emt 00:00:30]} Nd7 {[%clk 01:23:26]} {[%emt 00:04:43]} 8. d4 {[%clk
01:31:28]} {[%emt 00:01:04]} exd4 {[%clk 01:22:35]} {[%emt 00:01:21]} 9. Qxd4
{[%clk 01:31:48]} {[%emt 00:00:09]} O-O {[%clk 01:21:24]} {[%emt 00:01:41]} 10.
Bf4 {[%clk 01:31:56]} {[%emt 00:00:22]} Nc5 {[%clk 01:16:58]} {[%emt 00:04:57]}
11. Qe3 {[%clk 01:32:16]} {[%emt 00:00:10]} Bg4 {[%clk 01:12:26]} {[%emt
00:05:02]} 12. Ne5 {[%clk 01:32:41]} {[%emt 00:00:05]} Bh5 {[%clk 01:09:04]}
{[%emt 00:03:52]} 13. Qh3 {[%clk 01:33:07]} {[%emt 00:00:04]} Bg6 {[%clk
01:06:47]} {[%emt 00:02:46]} 14. Be3 {[%clk 01:31:49]} {[%emt 00:01:48]} Re8
{[%clk 00:40:25]} {[%emt 00:26:53]} 15. f4 {[%clk 01:20:27]} {[%emt 00:11:52]}
Bf8 {[%clk 00:34:40]} {[%emt 00:06:15]} 16. Rad1 {[%clk 00:54:40]} {[%emt
00:26:17]} Qc8 {[%clk 00:33:36]} {[%emt 00:01:33]} 17. Qf3 {[%clk 00:46:56]}
{[%emt 00:08:14]} f5 {[%clk 00:26:18]} {[%emt 00:07:48]} 18. Nxg6 {[%clk
00:39:25]} {[%emt 00:08:02]} hxg6 {[%clk 00:26:41]} {[%emt 00:00:06]} 19. e5
{[%clk 00:39:48]} {[%emt 00:00:07]} Qe6 {[%clk 00:24:34]} {[%emt 00:02:37]} 20.
h4 {[%clk 00:36:49]} {[%emt 00:03:29]} a5 {[%clk 00:19:56]} {[%emt 00:05:07]}
21. Rd4 {[%clk 00:34:58]} {[%emt 00:02:22]} Red8 {[%clk 00:18:38]} {[%emt
00:01:50]} 22. Rfd1 {[%clk 00:34:46]} {[%emt 00:00:40]} Qe8 {[%clk 00:18:48]}
{[%emt 00:00:19]} 23. g3 {[%clk 00:31:52]} {[%emt 00:03:26]} Ne6 {[%clk
00:12:49]} {[%emt 00:06:29]} 24. Rxd8 {[%clk 00:30:32]} {[%emt 00:01:50]} Rxd8
{[%clk 00:13:12]} {[%emt 00:00:06]} 25. Rxd8 {[%clk 00:29:00]} {[%emt
00:02:03]} Qxd8 {[%clk 00:07:17]} {[%emt 00:06:25]} 26. Qd1 {[%clk 00:27:09]}
{[%emt 00:02:20]} Kf7 {[%clk 00:02:33]} {[%emt 00:05:13]} 27. Qxd8 {[%clk
00:27:05]} {[%emt 00:00:35]} Nxd8 {[%clk 00:02:58]} {[%emt 00:00:06]} 28. Kf2
{[%clk 00:27:02]} {[%emt 00:00:32]} Be7 {[%clk 00:01:10]} {[%emt 00:02:17]} 29.
Ke2 {[%clk 00:26:37]} {[%emt 00:00:56]} Ke6 {[%clk 00:01:05]} {[%emt 00:00:35]}
30. Kd3 {[%clk 00:26:16]} {[%emt 00:00:51]} Bb4 {[%clk 00:00:59]} {[%emt
00:00:36]} 31. Ne2 {[%clk 00:26:27]} {[%emt 00:00:19]} Kd7 {[%clk 00:00:33]}
{[%emt 00:00:56]} 32. c3 {[%clk 00:24:05]} {[%emt 00:02:52]} Be7 {[%clk
00:00:53]} {[%emt 00:00:10]} 33. Kc4 {[%clk 00:18:32]} {[%emt 00:06:03]} Ne6
{[%clk 00:01:12]} {[%emt 00:00:11]} 34. a4 {[%clk 00:18:38]} {[%emt 00:00:23]}
Bf8 {[%clk 00:00:35]} {[%emt 00:01:07]} 35. Nc1 {[%clk 00:18:20]} {[%emt
00:00:49]} b6 {[%clk 00:00:35]} {[%emt 00:00:30]} 36. b4 {[%clk 00:15:56]}
{[%emt 00:02:53]} axb4 {[%clk 00:01:00]} {[%emt 00:00:06]} 37. cxb4 {[%clk
00:16:23]} {[%emt 00:00:03]} c5 {[%clk 00:00:58]} {[%emt 00:00:32]} 38. a5
{[%clk 00:14:17]} {[%emt 00:02:36]} cxb4 {[%clk 00:00:54]} {[%emt 00:00:34]} 39.
axb6 {[%clk 00:14:20]} {[%emt 00:00:27]} cxb6 {[%clk 00:00:34]} {[%emt
00:00:51]} 40. Bxb6 {[%clk 00:14:11]} {[%emt 00:00:39]} Kc6 {[%clk 00:00:33]}
{[%emt 00:00:30]} 41. Ba5 {[%clk 00:13:57]} {[%emt 00:00:43]} Be7 {[%clk
00:26:46]} {[%emt 00:04:18]} 42. Nb3 {[%clk 00:40:55]} {[%emt 00:03:32]} Bf8
{[%clk 00:24:48]} {[%emt 00:02:28]} 43. Bxb4 {[%clk 00:38:57]} {[%emt
00:02:29]} Bxb4 {[%clk 00:25:06]} {[%emt 00:00:12]} 44. Kxb4 {[%clk 00:39:23]}
{[%emt 00:00:03]} Kd5 {[%clk 00:25:28]} {[%emt 00:00:08]} 45. Kc3 {[%clk
00:35:37]} {[%emt 00:04:16]} Ke4 {[%clk 00:23:26]} {[%emt 00:02:32]} 46. Kc4
{[%clk 00:35:40]} {[%emt 00:00:27]} Nf8 {[%clk 00:05:17]} {[%emt 00:18:38]} 47.
Nd4 {[%clk 00:21:33]} {[%emt 00:14:37]} Nd7 {[%clk 00:00:56]} {[%emt 00:04:51]}
48. Ne6 {[%clk 00:17:28]} {[%emt 00:04:36]} Kf3 {[%clk 00:00:39]} {[%emt
00:00:47]} 49. Kd5 {[%clk 00:17:54]} {[%emt 00:00:04]} Kxg3 {[%clk 00:00:39]}
{[%emt 00:00:30]} 50. Kd6 {[%clk 00:18:19]} {[%emt 00:00:05]} Nb6 {[%clk
00:00:51]} {[%emt 00:00:18]} 51. Nc7 {[%clk 00:11:25]} {[%emt 00:07:24]} Kxh4
{[%clk 00:00:41]} {[%emt 00:00:40]} 52. e6 {[%clk 00:11:22]} {[%emt 00:00:33]}
Nc8+ {[%clk 00:00:34]} {[%emt 00:00:37]} 53. Kd7 {[%clk 00:11:33]} {[%emt
00:00:19]} Nb6+ {[%clk 00:00:33]} {[%emt 00:00:31]} 54. Kd8 {[%clk 00:10:58]}
{[%emt 00:01:04]} Nc4 {[%clk 00:00:48]} {[%emt 00:00:16]} 55. e7 {[%clk
00:10:56]} {[%emt 00:00:32]} Nd6 {[%clk 00:00:37]} {[%emt 00:00:42]} 56. Kd7
{[%clk 00:11:14]} {[%emt 00:00:11]} Ne4 {[%clk 00:00:34]} {[%emt 00:00:32]} 57.
Nd5 {[%clk 00:11:40]} {[%emt 00:00:05]} Nf6+ {[%clk 00:00:32]} {[%emt
00:00:32]} 58. Nxf6 {[%clk 00:12:05]} {[%emt 00:00:05]} gxf6 {[%clk 00:00:55]}
{[%emt 00:00:08]} 59. e8=Q {[%clk 00:12:29]} {[%emt 00:00:06]} g5 {[%clk
00:01:18]} {[%emt 00:00:06]} 60. Ke6 {[%clk 00:12:37]} {[%emt 00:00:22]} 1-0